Cogmind - Beta 16 @@@ ROGUE MODE // 2026.01.18 @ 16:10:50 Player: K0T Result: Destroyed by EX-DEC with AWS/EX-DEC Performance ------------- Evolutions (0) 0 Regions Visited (3) 600 Robots Destroyed (30) 150 Value Destroyed (795) 795 Prototype IDs (0) 0 Alien Tech Used (0) 0 Bonus (14) 14 TOTAL SCORE: 1559 Bonus ------- Follower Combat Kills 14 Cogmind --------- Core Integrity 0/250 Matter 296/300 Energy 125/125 System Corruption 1% Temperature Cool (0) Movement Treading (240) Ox1 Location -10/Exiles Parts ------- > --- POWER (1) -------- Light Ion Engine > --- PROPULSION (2) --- Light Treads > --- UTILITY (2) ------ Large Storage Unit > --- WEAPON (2) ------- Light Cannon > --- INVENTORY (15) --- Ion Engine Light Ion Engine Light Nuclear Core Light Treads Light Treads Light Treads Light Treads Light Treads High-capacity Storage Unit Experimental Sensor Array EM Pulse Gun Light Cannon Light Cannon Grenade Launcher Grenade Launcher Peak State ------------ > --- POWER ------------ Light Ion Engine > --- PROPULSION ------- Light Treads Light Treads > --- UTILITY ---------- Large Storage Unit ECM Suite > --- WEAPON ----------- Light Cannon Light Cannon > --- INVENTORY -------- Ion Engine Light Ion Engine Light Nuclear Core Light Treads Light Treads Light Treads Light Treads Light Treads High-capacity Storage Unit Experimental Sensor Array EM Pulse Gun Light Cannon Light Cannon Grenade Launcher Grenade Launcher [Rating: 9] Favorites ----------- Power Light Ion Engine Engine Light Ion Engine Propulsion Light Treads Treads Light Treads Utility ECM Suite Device ECM Suite Storage Medium Storage Unit Weapon Light Cannon Energy Gun Small Laser Ballistic Gun Light Assault Rifle Ballistic Cannon Light Cannon Build | -11 -10 -10 -10 ------- Run | Yrd Mat Min Exi Slots Evolved . | . . . . Power . | . . . . Propulsion . | . . . . Utility . | . . . . Weapon . | . . . . Parts Attached 16 | 6 8 2 . Power 3 | 1 2 . . Engine 3 | 1 2 . . Core . | . . . . Reactor . | . . . . Propulsion 4 | 2 1 1 . Treads 4 | 2 1 1 . Leg . | . . . . Wheel . | . . . . Hover . | . . . . Flight . | . . . . Utility 4 | 1 2 1 . Device 1 | . 1 . . Storage 3 | 1 1 1 . Processor . | . . . . Hackware . | . . . . Protection . | . . . . Artifact . | . . . . Weapon 5 | 2 3 . . Energy Gun 2 | 1 1 . . Energy Cannon . | . . . . Ballistic Gun 1 | 1 . . . Ballistic Cannon 2 | . 2 . . Launcher . | . . . . Special Weapon . | . . . . Impact Weapon . | . . . . Slashing Weapon . | . . . . Piercing Weapon . | . . . . Special Melee Weapon . | . . . . Unidentified Prototypes . | . . . . Parts Lost 7 | . 3 1 3 Power 1 | . 1 . . Propulsion 2 | . . 1 1 Utility 1 | . . . 1 Weapon 3 | . 2 . 1 Highest Loss Streak 3 | . 2 1 3 To Critical Strikes . | . . . . Average Backups 9 | 1 5 13 15 Power 1 | . . 2 3 Propulsion 3 | . 1 5 5 Utility . | . . . 2 Weapon 3 | . 3 4 5 Tool/Special . | . . . . Unused Backups 15 | . . . 15 Power 3 | . . . 3 Propulsion 5 | . . . 5 Utility 2 | . . . 2 Weapon 5 | . . . 5 Tool/Special . | . . . . Average Slot Usage (%) 98 | . 97 99 100 Engine 13 | . 13 14 14 Treads 27 | . 28 27 28 Device 11 | . 9 14 14 Storage 15 | . 17 14 14 Energy Gun 1 | . 3 . . Ballistic Gun 1 | . 2 . . Ballistic Cannon 23 | . 19 28 28 Peak Build Rating 9 | 6 8 9 9 Average Rating 7 | 3 7 8 8 On Entrance 5 | . 6 8 9 Avg Prop Armor Cover (%) . | . . . . Naked Turns . | . . . . Heaviest Build 31 | 11 24 31 31 Greatest Support 40 | 40 40 40 40 Greatest Overweight (x) 1 | . . 1 . Average Overweight (x) . | . . . . Largest Inventory Capacity 15 | 8 10 15 15 Average Capacity 12 | 7 9 14 15 Most Carried 15 | 5 9 15 15 Average Carried 9 | 1 5 13 15 Final Capacity 15 | 8 10 15 15 Final Carried 15 | 1 9 15 15 Class Distribution -------------------- 100% | Mutant Dominant Class ---------------- Mutant | -10/Materials Mutant | -10/Mines Mutant | -10/Exiles Resources | -11 -10 -10 -10 ----------- Run | Yrd Mat Min Exi Matter Collected 805 | 66 548 165 26 Remotely . | . . . . Salvage Created 810 | . 720 90 . Parts 51 | . 40 11 . Haulers Intercepted 2 | . 2 . . Recyclers Shooed . | . . . . Parts Field Recycled . | . . . . Retrieved Matter . | . . . . Parts Self-Destructed . | . . . . Prevented . | . . . . Parts Restored . | . . . . Kills | -11 -10 -10 -10 ------- Run | Yrd Mat Min Exi Combat Hostiles Destroyed 23 | . 17 6 . Guns 9 | . 9 . . Cannons 11 | . 8 3 . AOE 3 | . . 3 . Classes Destroyed 6 | . 6 . . Worker 1 | . 1 . . Hauler 2 | . 2 . . Operator 2 | . 2 . . Watcher 2 | . 2 . . Swarmer 7 | . 3 4 . Grunt 16 | . 14 2 . Best Kill Streak 4 | . 4 3 . Combat Bots Only 4 | . 4 3 . Max Kills in Single Turn 3 | . 1 3 . Gunslinging . | . . . . Exploded 3 | . . 3 . Melee . | . . . . Uniques/NPCs Destroyed . | . . . . Combat | -11 -10 -10 -10 -------- Run | Yrd Mat Min Exi Hostile Shots Fired 139 | . 106 25 8 Missed 31 | . 25 6 . Hits 108 | . 81 19 8 Projectile 108 | . 81 19 8 Critical Strikes 3 | . 2 . 1 Damage Taken 1352 | . 934 238 180 Core 251 | . 184 34 33 Absorbed by Shields . | . . . . Core Remaining (%) 100 | 100 . . . Volleys Fired 105 | . 92 11 2 Largest 2 | . 2 2 2 Hottest 70 | . 70 60 60 Shots Fired 191 | . 165 22 4 Gun 95 | . 95 . . Cannon 96 | . 70 22 4 Launcher . | . . . . Special . | . . . . Kinetic 134 | . 108 22 4 Thermal 57 | . 57 . . Explosive . | . . . . Electromagnetic . | . . . . Robot Hit Streak 12 | . 12 4 2 Robot Miss Streak 4 | . 4 3 2 Penetration Max . | . . . . Secondary Targets 1 | . 1 . . Max Gunslinging Chain 1 | . 1 . . Shots Hit Robots 120 | . 108 10 2 Core Hits 44 | . 36 6 2 Critical Kills . | . . . . Critical Parts Destroyed . | . . . . Critical Strikes 4 | . 4 . . Burn 1 | . 1 . . Blast 3 | . 3 . . Melee Attacks . | . . . . Impact . | . . . . Slashing . | . . . . Piercing . | . . . . Sneak Attacks . | . . . . Combat Hostiles . | . . . . Follow-up Attacks . | . . . . Damage Inflicted 1827 | . 1405 395 27 Guns 719 | . 719 . . Cannons 904 | . 686 191 27 Explosions 204 | . . 204 . Melee . | . . . . Ramming . | . . . . Kinetic 1150 | . 932 191 27 Thermal 677 | . 473 204 . Explosive . | . . . . Electromagnetic . | . . . . Impact . | . . . . Slashing . | . . . . Piercing . | . . . . Highest Corruption 1 | . 1 1 1 Average Corruption 1 | . 1 1 1 Corruption Purged . | . . . . Corruption Blocked . | . . . . Effects 20 | . 7 10 3 Message Errors 4 | . 2 1 1 Matter Fused 8 | . 3 5 . Heat Flow Errors 3 | . 1 2 . Energy Discharges 1 | . . . 1 Data Loss (minor) 3 | . . 2 1 Data Loss (major) 1 | . 1 . . Overload Shots . | . . . . Overflow Damage 86 | . 13 73 . Projectiles 13 | . 13 . . Explosions 73 | . . 73 . Melee . | . . . . Knockbacks 13 | . 9 3 1 Impact . | . . . . Kinetic 13 | . 9 3 1 Secondary . | . . . . Self-Inflicted Damage 77 | . . 77 . Shots 2 | . . 2 . Rammed . | . . . . Targets Rammed . | . . . . Kicked . | . . . . Crushed . | . . . . Highest Temperature 226 | . 226 190 . Average Temperature 95 | . 102 54 . Received Heat Transfer 546 | . 525 21 . Siege Activations . | . . . . Martial Activations . | . . . . Shielding Activations . | . . . . Robots Disrupted . | . . . . Combat Hostiles . | . . . . Robots Corrupted . | . . . . Combat Hostiles . | . . . . Parts Fried . | . . . . Impact Corruptions . | . . . . Robots Melted . | . . . . Combat Hostiles . | . . . . Parts Melted 2 | . 1 1 . Heat Transferred 1505 | . 1255 250 . Parts Sabotaged . | . . . . Parts Stolen . | . . . . Parts Stripped . | . . . . Power Chain Reactions . | . . . . Alert | -11 -10 -10 -10 ------- Run | Yrd Mat Min Exi Maximum Alert Level . | . . . . Low Security (%) 100 | 100 100 100 . Level 1 . | . . . . Level 2 . | . . . . Level 3 . | . . . . Level 4 . | . . . . Level 5 . | . . . . High Security . | . . . . Max Security . | . . . . Peak Influence 152 | . 125 152 . Initial 31 | . . 31 . Average 31 | . 30 35 . Influence Increases 854 | . 587 267 . Destroy 0b10 Robot/C 500 | . 340 160 . Destroy 0b10 Robot/NC 35 | . 35 . . Destroy Leader 118 | . 88 30 . Allied During Kill 11 | . . 11 . Successful Hack 15 | . 15 . . Select Force Hacks 60 | . 60 . . Disable Machine 90 | . 45 45 . Destroy Structure 25 | . 4 21 . Influence Decreases 854 | . 505 335 14 Entered New Map 65 | . . 51 14 Time Decay 749 | . 475 274 . Lost Part 40 | . 30 10 . Squads Dispatched 5 | . 5 . . Investigation 3 | . 3 . . Extermination . | . . . . Reinforcement 2 | . 2 . . Assault . | . . . . Garrison . | . . . . Intercept . | . . . . Searches Triggered . | . . . . Construction Impeded . | . . . . Haulers Reinforced . | . . . . Active Scanning Responses . | . . . . Cargo Convoy Interrupts . | . . . . Stealth | -11 -10 -10 -10 --------- Run | Yrd Mat Min Exi Distress Signals 3 | . 3 . . Communications Jammed . | . . . . Distress Signals . | . . . . Times Spotted 36 | . 26 8 2 Peak Tracking Total 11 | . 5 3 11 Tactical Retreats 2 | . 2 . . ECM-based Alert Blocks 2 | . 2 . . Traps | -11 -10 -10 -10 ------- Run | Yrd Mat Min Exi Traps Triggered 1 | . 1 . . Indirectly . | . . . . Trap Hack Attempts . | . . . . Triggered . | . . . . Disarmed . | . . . . Reprogrammed . | . . . . Reused . | . . . . Traps Extracted . | . . . . Installed . | . . . . Triggered . | . . . . Machines | -11 -10 -10 -10 ---------- Run | Yrd Mat Min Exi Machines Disabled 7 | . 3 3 1 Max in Single Turn 2 | . 1 2 1 Machines Repaired . | . . . . Machines Dismantled . | . . . . Machines Sabotaged . | . . . . Overloaded Fab Kills . | . . . . Hacking | -11 -10 -10 -10 --------- Run | Yrd Mat Min Exi Machines Accessed 11 | . 7 . 4 Terminals 5 | . 5 . . Fabricators . | . . . . Repair Stations . | . . . . Recycling Units 2 | . 2 . . Scanalyzers . | . . . . Garrison Access . | . . . . Total Hacks 69 | . 20 . 49 Successful 59 | . 10 . 49 Failed 10 | . 10 . . Catastrophic 1 | . 1 . . Database Lockouts . | . . . . Manual 17 | . 17 . . Terminals 17 | . 17 . . Fabricators . | . . . . Repair Stations . | . . . . Recycling Units 3 | . 3 . . Scanalyzers . | . . . . Garrison Access . | . . . . Terminal Hacks 51 | . 2 . 49 Record 49 | . . . 49 Robot Analysis 2 | . 2 . . Fabricator Hacks . | . . . . Repair Station Hacks . | . . . . Recycling Unit Hacks 1 | . 1 . . Retrieve Components 1 | . 1 . . Scanalyzer . | . . . . Garrison Access Hacks . | . . . . Unauthorized Hacks 7 | . 7 . . Terminals 5 | . 5 . . Assimilate 2 | . 2 . . Botnet 2 | . 2 . . Skim 1 | . 1 . . Fabricators . | . . . . Repair Stations . | . . . . Recycling Units 2 | . 2 . . Tunnel 2 | . 2 . . Scanalyzers . | . . . . Garrison Access . | . . . . Data Cores Recovered . | . . . . Used . | . . . . Hacking Detections 6 | . 6 . . Full Trace Events 1 | . 1 . . Feedback Events . | . . . . Feedback Blocked . | . . . . Robot Schematics Acquired . | . . . . Robots Built . | . . . . Authchips . | . . . . Time . | . . . . Total Robot Build Rating . | . . . . Part Schematics Acquired . | . . . . Parts Built . | . . . . Authchips . | . . . . Time . | . . . . Total Part Build Rating . | . . . . Part Studies Acquired . | . . . . Parts Repaired . | . . . . Time . | . . . . Parts Recycled . | . . . . Recycled Matter . | . . . . Retrieved Matter . | . . . . Retrieved Components 10 | . 10 . . Parts Scanalyzed . | . . . . Part Schematics Acquired . | . . . . Parts Damaged . | . . . . Bothacking | -11 -10 -10 -10 ------------ Run | Yrd Mat Min Exi Used RIF Installer . | . . . . Robots Hacked . | . . . . Non-combat . | . . . . Combat . | . . . . Robot Hacks Applied . | . . . . Relay Couplers Released . | . . . . Fabnet Peak Effective % . | . . . . Robots Rewired . | . . . . Allies Hacked . | . . . . Hacks Repelled . | . . . . Allies | -11 -10 -10 -10 -------- Run | Yrd Mat Min Exi Total Allies 3 | . . 3 . Largest Group 3 | . . 3 3 Highest-Rated Group 40 | . . 40 40 Highest-Rated Ally 16 | . . 16 16 Total Orders . | . . . . Ally Attacks 16 | . . 9 7 Total Damage 103 | . . 39 64 Kills 3 | . . 2 1 Allies Corrupted . | . . . . Allies Melted . | . . . . Intel | -11 -10 -10 -10 ------- Run | Yrd Mat Min Exi Active Infowar (turns) 3323 | . 1370 1081 872 ECM 3323 | . 1370 1081 872 Robot Analysis Total 2 | . 2 . . Derelict Logs Recovered 1 | . . 1 . Drone Launches . | . . . . Drone Recoveries . | . . . . Exploration | -11 -10 -10 -10 ------------- Run | Yrd Mat Min Exi Turns Passed 3937 | 49 1932 1081 875 Spaces Moved 2159 | 32 996 588 543 Core 12 | 12 . . . Treads 2147 | 20 996 588 543 Legs . | . . . . Wheels . | . . . . Hover . | . . . . Flight . | . . . . Fastest Speed 50 | 50 160 160 160 Average Speed 159 | 118 160 160 160 Slowest Speed 240 | 160 160 240 160 Overloaded Moves . | . . . . Propulsion Burnouts . | . . . . Robots Hopped . | . . . . Potential Cave-ins . | . . . . Cave-ins Triggered . | . . . . Exploration Rate (%) 69 | 3 97 88 89 Regions Visited 3 Branch Regions 2 Pre-discovered Areas 4 | . 2 1 1 Known Exits Taken . | . . . . Unknown Exits Taken 3 | 1 1 1 . Scrap Searched 3 | . . 3 . Spaces Dug . | . . . . Terrain Destroyed 21 | . . 21 . Melee . | . . . . Projectile . | . . . . AOE 21 | . . 21 . Terrain Rammed . | . . . . Walls Destroyed . | . . . . Machines Disabled . | . . . . Actions | -11 -10 -10 -10 --------- Run | Yrd Mat Min Exi Total 2468 | 43 1178 702 545 Wait 156 | . 63 93 . Move 2156 | 31 995 587 543 Hop . | . . . . Pick Up 30 | 6 16 8 . Fast Attach 1 | 1 . . . Attach 12 | 5 6 1 . Detach . | . . . . Swap 3 | . 2 1 . Drop 5 | . 4 1 . Fire 105 | . 92 11 2 Melee . | . . . . Ram . | . . . . Kick . | . . . . Crush . | . . . . Escape Stasis . | . . . . Rewire . | . . . . Trap . | . . . . Miscellaneous . | . . . . Route ------- -11/Scrapyard -10/Materials (discovered 6 exits: [*Mat x3] / [*Min x2] / [*Sub]) -10/Mines (discovered 4 exits: [*Mat x2] / *Exi / [*Sub]) -10/Exiles (discovered 1 exit: [*Min]) History --------- Turn | Location | Event 6 | -11/Scrapyard | Discovered new exit (range 15) 50 | -11/Scrapyard | Entered Materials 286 | -10/Materials | Discovered new exit (range 8) 312 | -10/Materials | Build established: Mutant 359 | -10/Materials | Core integrity fell below 50% 473 | -10/Materials | Discovered new exit (range 12) 629 | -10/Materials | Discovered new exit (range 11) 1152 | -10/Materials | Discovered new exit (range 11) 1258 | -10/Materials | Discovered new exit (range 16) 1325 | -10/Materials | Discovered new exit (range 10) 1982 | -10/Materials | Entered Mines 1983 | -10/Mines | Assembled infested the area 1986 | -10/Mines | Core integrity fell below 20% 2148 | -10/Mines | Found DCF Scrap (12 items) 2218 | -10/Mines | Learned location of Storage (-8) 2371 | -10/Mines | Discovered new exit (range 13) 2516 | -10/Mines | Learned Materials emergency access door positions 2589 | -10/Mines | Discovered new exit (range 7) 2754 | -10/Mines | Discovered new exit (range 8) 2780 | -10/Mines | Assisted by bots powering up and referring to "LRC-V3" 2959 | -10/Mines | Found a damaged Exp. Sensor Array with a note attached 2962 | -10/Mines | Found Prototype Device 3055 | -10/Mines | Discovered new exit (range 5) 3063 | -10/Mines | Entered Exiles 3063 | -10/Exiles | Accompanied by 3 allies 3119 | -10/Exiles | Met 8R-AWN 3150 | -10/Exiles | Met EX-HEX 3207 | -10/Exiles | Met EX-BIN 3399 | -10/Exiles | Met EX-DEC 3420 | -10/Exiles | Learned location of Zion (-6) 3484 | -10/Exiles | Visited The Gauntlet 3803 | -10/Exiles | Discovered new exit (range 14) 3933 | -10/Exiles | Attacked by the Exiles 3938 | -10/Exiles | Destroyed by EX-DEC with AWS/EX-DEC Last Messages --------------- tell them to swing by our lab real quick. We need to have a talk with them about steering clear of our depth to avoid stirring up trouble. --HEX 03442_ System corrupted: Component data lost. 03559_ Acquired 26 matter. 03621_ System corrupted: Energy discharge (-50). 03747_ WS35 GGUVO